[Event "4th ESNA Championship 2022"]
[Site "Vaduz"]
[Date "2022.09.26"]
[Round "2.2"]
[White "Volpinari, Danilo"]
[Black "Kirby, Peter J."]
[Result "0-1"]
[ECO "B13"]
[WhiteElo "1929"]
[BlackElo "2011"]
[Annotator "TA"]
[PlyCount "78"]
[EventDate "2022.09.25"]
[EventCountry "LIE"]
[SourceTitle "playchess.com"]
[Source "ChessBase"]
[SourceQuality "1"]
[TimeControl "5400+30"]

{[%evp 9,78,-6,0,0,0,-24,6,-6,-5,0,-3,-3,0,0,-4,-1,6,0,0,-13,-14,-7,4,0,0,0,0,0,0,0,0,0,23,23,33,46,95,86,145,143,157,43,43,43,43,49,96,10,74,20,59,-97,39,22,65,0,0,0,-8,-4,-3,-268,-270,-260,-256,-272,-264,-599,-568,-697,-671]} 1. d4 {[%emt 0:00:14]} d5 {[%emt 0:00:05]} 2. Bf4 {[%emt 0:00:33]} Nf6 {[%emt 0:00:07]} 3. e3 {[%emt 0:00:34]} c5 {[%emt 0:00:16]} 4. Nc3 {[%emt 0:03:46]} cxd4 {[%emt 0:00:47]} 5. exd4 {[%emt 0:00:07]} a6 {[%emt 0:00:20]} 6. Nf3 {[%emt 0:04:12] B13: Caro-Kann: Exchange Variation and Panov-Botvinnik Attack.} Nc6 {[%emt 0:00:21]} 7. Be2 {[%emt 0:01:38]} Bg4 {[%emt 0:00:25]} 8. h3 {[%emt 0:02:36] The position is equal.} Bxf3 {[%emt 0:00:16]} 9. Bxf3 {[%emt 0:00:28]} e6 {[%emt 0:00:26]} 10. Ne2 {[%emt 0:06:13]} Bd6 {[%emt 0:03:41]} 11. c3 {[%emt 0:02:13]} O-O {[%emt 0:03:18]} 12. O-O {[%emt 0:02:24]} Qc7 {[%emt 0:07:48]} 13. Bxd6 {[%emt 0:07:26]} Qxd6 {[%emt 0:00:02] [#]} 14. Re1 $146 {[%emt 0:00:33]} ({Predecessor:} 14. Nc1 b5 15. Nd3 b4 16. Nxb4 Nxb4 17. cxb4 Qxb4 18. Rb1 Rac8 19. a3 Qb6 20. Qd2 {0-1 (60) Halfhide,S (2151)-Laurusas,T (2421) Panevezys 2015}) 14... b5 {[%emt 0:08:07]} 15. a3 {[%emt 0:07:37]} Rab8 {[%emt 0:12:00]} 16. Nc1 {[%emt 0:02:05][%cal Be2c1,Bc1d3,Bd3c5][%mdl 32]} a5 {[%emt 0:07:38]} 17. b4 {[%emt 0:01:06]} Nd7 {[%emt 0:07:03][%cal Bf6d7,Bd7b6,Bb6c4][%mdl 32]} 18. Nd3 {[%emt 0:02:50]} Nb6 {[%emt 0:02:51]} 19. Nc5 {[%emt 0:02:20]} Nc4 {[%emt 0:02:20]} 20. Be2 {[%emt 0:08:05]} a4 {[%emt 0:02:45]} 21. Bd3 {[%emt 0:06:22]} Rfe8 {[%emt 0:05:26]} 22. Qh5 {[%emt 0:05:11]} g6 {[%emt 0:00:17]} (22... h6 $14 {was preferrable.}) 23. Qh6 $16 {[%emt 0:07:18]} e5 {[%emt 0:06:23]} (23... f5 $142) 24. Bxc4 {[%emt 0:04:12]} bxc4 {[%emt 0:00:17]} 25. Qd2 {[%emt 0:04:31]} (25. dxe5 $16 Nxe5 26. Qd2) 25... exd4 $14 {[%emt 0:02:09]} 26. cxd4 {[%emt 0:00:08]} Rxe1+ {[%emt 0:02:36]} 27. Rxe1 {[%emt 0:00:29]} Ra8 {[%emt 0:00:54]} (27... Na7 $1 $14) 28. Qe3 {[%emt 0:09:38]} (28. b5 $16) 28... Qf6 {[%emt 0:02:20] [#]} (28... Qd8 $11 {remains equal.}) 29. Rd1 {[%emt 0:02:56]} (29. b5 $1 $16 {[%cal Rb5c6]} Nxd4 30. b6) 29... Kg7 {[%emt 0:03:24]} 30. g3 $2 {[%emt 0:02:46] [#]} (30. b5 $14 {keeps the upper hand.} Ne7 31. b6) 30... Ra7 {[%emt 0:02:40]} ({Black should try} 30... Na7 $1 $17) 31. Kg2 {[%emt 0:00:25]} Ne7 {[%emt 0:04:47][%cal Bc6e7,Be7f5,Bf5d4][%mdl 32]} 32. Qf3 {[%emt 0:01:25]} (32. Qe5 $14) 32... Qxf3+ $11 {[%emt 0:03:05]} 33. Kxf3 {[%emt 0:00:03][%mdl 4096] Endgame KRN-KRN} Nf5 {[%emt 0:02:34] Black wants to play ...Nd6.} 34. b5 {[%emt 0:01:09] Threatens to win with g4.} Rc7 {[%emt 0:04:54][%cal Of5d4] ...Nxd4+! is the strong threat.} 35. g4 $2 {[%emt 0:01:36][%mdl 8192] [#]} (35. Nxa4 $11 Ra7 36. Nc5 Rxa3+ 37. Kf4) 35... Nxd4+ $1 $19 {[%emt 0:00:45][%mdl 512]} 36. Rxd4 {[%emt 0:00:17]} Rxc5 {[%emt 0:00:01]} 37. b6 {[%emt 0:01:27]} Rb5 {[%emt 0:00:02]} 38. Ke2 $2 {[%emt 0:01:15]} (38. b7 {is more resistant.}) 38... Kf6 {[%emt 0:01:13] White must now prevent ...Ke5.} 39. b7 {[%emt 0:00:37]} Ke5 {[%emt 0:01:04] Never resign too early!  Weighted Error Value: White=0.48/Black=0.20 (precise)} 0-1

[Event "4th ESNA Championship 2022"]
[Site "Vaduz"]
[Date "2022.09.26"]
[Round "2.3"]
[White "Apol, Luitjen Akselsson"]
[Black "Efimov, Igor"]
[Result "1-0"]
[ECO "C07"]
[WhiteElo "2113"]
[BlackElo "2360"]
[Annotator "TA"]
[PlyCount "67"]
[EventDate "2022.09.25"]
[EventCountry "LIE"]
[SourceTitle "playchess.com"]
[Source "ChessBase"]
[SourceQuality "1"]
[TimeControl "5400+30"]

{[%evp 11,67,5,12,11,30,0,0,0,4,10,31,0,37,31,40,37,88,83,77,39,46,0,86,0,37,12,25,23,15,8,62,61,58,0,162,175,271,278,276,278,262,244,366,360,347,248,489,247,247,237,239,51,711,638,658,629,602,587]} 1. e4 {[%emt 0:01:22]} e6 {[%emt 0:00:09]} 2. d4 {[%emt 0:02:08]} d5 {[%emt 0:00:35]} 3. Nd2 {[%emt 0:00:19]} c5 {[%emt 0:00:35]} 4. Ngf3 {[%emt 0:00:05]} cxd4 {[%emt 0:00:33]} 5. Nxd4 {[%emt 0:01:12]} Nf6 {[%emt 0:01:30]} 6. exd5 {[%emt 0:00:22]} Nxd5 {[%emt 0:03:31]} 7. N2f3 {[%emt 0:07:09] C07: French Tarrasch: 3...c5, 4 Ngf3 and 4 exd5 Qxd5.} Bc5 {[%emt 0:05:05]} 8. c3 {[%emt 0:11:38] [#]} O-O $146 {[%emt 0:05:25][%cal Oe6e5]} ({Predecessor:} 8... Qb6 9. Bc4 O-O 10. Bxd5 exd5 11. O-O Bg4 12. Nb3 Rd8 13. Nxc5 Qxc5 14. Qd4 Qxd4 15. Nxd4 {½-½ (30) Nihal,S (2507)-Erigaisi,A (2359) Ahmedabad 2017}) 9. Bd3 {[%emt 0:00:33] The position is equal.} Nd7 {[%emt 0:01:42]} 10. O-O {[%emt 0:00:54]} N7f6 {[%emt 0:03:31]} 11. Bg5 {[%emt 0:11:48]} b6 {[%emt 0:07:48]} 12. Re1 {[%emt 0:08:36]} Bb7 {[%emt 0:00:33]} 13. Qd2 {[%emt 0:02:38]} Rc8 {[%emt 0:07:58]} (13... Qc7 $14) 14. a3 $16 {[%emt 0:03:23] White has more active pieces.} Re8 {[%emt 0:13:15]} 15. Bb5 {[%emt 0:06:15]} (15. Rad1 $5 {[%cal Rc3c4]}) 15... Rf8 {[%emt 0:02:50]} 16. Bd3 {[%emt 0:03:52]} Re8 $1 {[%emt 0:03:52]} 17. Bb5 {[%emt 0:08:01]} (17. Rad1 $1 $16) 17... Rf8 $14 {[%emt 0:00:29]} 18. Rad1 {[%emt 0:00:34] next Ne5 is good for White.} a6 {[%emt 0:06:53]} 19. Bd3 {[%emt 0:00:19] c4 is the strong threat.} b5 {[%emt 0:00:09]} 20. Bb1 {[%emt 0:01:23]} Be7 {[%emt 0:04:55]} (20... Qc7 $11) 21. Qd3 {[%emt 0:02:59][%cal Oa3a4]} g6 {[%emt 0:01:28]} 22. Ne5 {[%emt 0:00:51]} ({White should play} 22. Ba2 $14) 22... Nd7 $2 {[%emt 0:00:41]} (22... Ng4 $11 {and Black is okay.} 23. Bxe7 Nxe5 24. Bxd8 Nxd3 25. Bxd3 Rfxd8) 23. Nxg6 $1 $18 {[%emt 0:11:21]} fxg6 {[%emt 0:02:14]} (23... hxg6 {keeps fighting.} 24. Nxe6 Bxg5 25. Nxd8 Rfxd8) 24. Nxe6 {[%emt 0:01:26]} Qb6 {[%emt 0:01:54]} 25. Nxf8 {[%emt 0:01:13] Really sharp!} Rxf8 {[%emt 0:00:10]} 26. Ba2 $1 {[%emt 0:02:47]} Bxg5 {[%emt 0:16:51]} (26... Qxf2+ $142 27. Kh1 Bxg5 28. Bxd5+ Kg7) 27. Bxd5+ {[%emt 0:00:10]} Kg7 {[%emt 0:00:11]} 28. Bxb7 {[%emt 0:00:37]} Qxf2+ {[%emt 0:00:03]} 29. Kh1 {[%emt 0:00:09]} Nc5 {[%emt 0:00:03]} 30. Qd5 {[%emt 0:02:28]} Rf5 {[%emt 0:00:21] [#]} 31. Qc6 {[%emt 0:01:34]} (31. Qd4+ $1 $18 Bf6 32. Qd2) 31... Nd3 $2 {[%emt 0:00:16][%mdl 8192]} 32. Qd7+ {[%emt 0:00:08] White is clearly winning.} (32. Re8 $2 {[#] leads to mate.} Qf1+ $3 {[%mdl 512]} 33. Rxf1 Rxf1#) 32... Rf7 {[%emt 0:00:14]} 33. Qxd3 {[%emt 0:00:18] And now Rf1 would win.} Rxb7 {[%emt 0:00:06]} 34. Qd5 {[%emt 0:00:51] Against Qc5.  Weighted Error Value: White=0.22 (precise) /Black=0.27 (precise)} 1-0

[Event "4th ESNA Championship 2022"]
[Site "Vaduz"]
[Date "2022.09.26"]
[Round "2.4"]
[White "Frick, Renato"]
[Black "Carpenter, Paul A"]
[Result "1-0"]
[ECO "C41"]
[WhiteElo "1875"]
[BlackElo "1986"]
[Annotator "TA"]
[PlyCount "76"]
[EventDate "2022.09.25"]
[EventCountry "LIE"]
[SourceTitle "playchess.com"]
[Source "ChessBase"]
[SourceQuality "1"]
[TimeControl "5400+30"]

{[%evp 19,76,0,15,-64,-61,-38,0,0,16,0,0,-32,19,-35,14,0,43,32,30,29,34,22,58,56,68,10,54,47,62,-56,-55,-71,-66,-77,-37,-54,-63,-472,-466,-1725,-184,-3145,-237,-319,0,0,0,0,0,0,0,0,0,0,0,0,353,333,29993]} 1. e4 {[%emt 0:00:05]} d6 {[%emt 0:00:11]} 2. d4 {[%emt 0:00:18]} Nf6 {[%emt 0:00:13]} 3. Nc3 {[%emt 0:00:26]} Nbd7 {[%emt 0:00:24]} 4. Nf3 {[%emt 0:01:08][%cal Bg1f3,Bf3g5,Bg5e6][%mdl 32]} e5 {[%emt 0:00:23]} 5. Bc4 {[%emt 0:04:21]} Be7 {[%emt 0:01:37]} 6. Ng5 {[%emt 0:09:30]} O-O {[%emt 0:04:59]} 7. Bxf7+ {[%emt 0:01:11]} Rxf7 {[%emt 0:00:29]} 8. Ne6 {[%emt 0:00:13]} Qe8 {[%emt 0:00:33]} 9. Nxc7 {[%emt 0:00:19]} Qd8 {[%emt 0:00:55]} 10. Nxa8 {[%emt 0:00:08]} b6 {[%emt 0:06:15]} 11. O-O {[%emt 0:21:55] C41: Philidor Defence.} ({White should try} 11. f3 $11) 11... Ba6 $15 {[%emt 0:16:37][%csl LRa8,LRf1]} 12. Re1 {[%emt 0:01:08][%cal Od4e5]} (12. dxe5 Nxe5 13. Re1 (13. f4 Bxf1 14. fxe5 Ne8 $15) 13... Qxa8) 12... Qxa8 {[%emt 0:02:44]} 13. d5 {[%emt 0:04:28] The position is equal.} Qc8 {[%emt 0:06:40]} 14. Be3 {[%emt 0:02:17]} Nf8 {[%emt 0:09:44]} 15. f3 {[%emt 0:06:08] [#]} h6 $146 {[%emt 0:02:15]} ({Black should play} 15... g5 $15) ({Predecessor:} 15... Nh5 16. Qd2 Nf4 17. a4 N8g6 18. Kh1 Nh4 19. Bxf4 Rxf4 20. Nb5 Qd7 21. c4 Ng6 {1-0 (60) Ranaivoharisoa,A (2061)-Damey,L (1952) St Denis 2008}) 16. Ne2 {[%emt 0:06:21]} (16. a4 $11) 16... Bxe2 {[%emt 0:04:13]} (16... Nh5 $15) 17. Qxe2 $11 {[%emt 0:04:44]} g5 {[%emt 0:00:26]} 18. Rf1 {[%emt 0:12:36]} Ng6 {[%emt 0:05:41]} 19. g3 {[%emt 0:00:43]} Rg7 {[%emt 0:02:58][%cal Og6f4]} 20. Kh1 $1 {[%emt 0:05:34]} g4 {[%emt 0:07:20]} 21. fxg4 {[%emt 0:05:22]} Nxe4 {[%emt 0:02:12]} 22. Qf3 {[%emt 0:06:57]} (22. Rf5 $14) 22... Ng5 {[%emt 0:16:31] Pair of Knights!} 23. Qf5 {[%emt 0:00:42]} Qc4 {[%emt 0:00:46]} 24. Qd3 {[%emt 0:03:23]} (24. Rad1 $14) 24... Qxg4 $15 {[%emt 0:00:32] aiming for ...e4.} 25. Bxg5 {[%emt 0:00:16]} Bxg5 {[%emt 0:03:58]} 26. Rae1 {[%emt 0:00:36] Inhibits e4.} Ne7 {[%emt 0:02:59]} 27. Re4 {[%emt 0:00:32]} Qh3 {[%emt 0:00:18] Strongly threatening ...Nf5.} 28. c4 $2 {[%emt 0:01:40][%mdl 8192]} ({Better is} 28. Ree1 $15) 28... Nf5 $19 {[%emt 0:00:32]} 29. Ree1 {[%emt 0:00:45]} (29. Rxf5 $142 Qxf5 30. b3) 29... Rf7 $2 {[%emt 0:00:40]} (29... e4 30. Qb3 Bd2 31. Rxf5 Bxe1) 30. Kg1 $2 {[%emt 0:01:10] [#]} (30. Rf3) 30... h5 $2 {[%emt 0:01:31]} (30... Nh4 31. Qe2 Nf5 32. Qf3 $17) (30... Ne3 $1 {[%csl Ge3][%cal Rh3g2][%mdl 512]} 31. Qe2 (31. Qg6+ Kh8) 31... Nxf1) 31. Rf3 {[%emt 0:00:20]} Nh4 $2 {[%emt 0:00:51]} 32. gxh4 $11 {[%emt 0:00:30] Really sharp!} Rxf3 {[%emt 0:00:27]} 33. Qg6+ {[%emt 0:00:05]} Kf8 $1 {[%emt 0:00:24]} 34. Qxg5 {[%emt 0:00:32]} Rf4 {[%emt 0:00:13] [#] Hoping for ...Rg4+.} (34... Rf7 $5 35. Qd8+ $8 Kg7 36. Qg5+ (36. Qxd6 Qg4+ 37. Kh1 Qf3+ 38. Kg1 Qf2+ 39. Kh1 Qxe1+ 40. Kg2 Qf1+ 41. Kg3 Rf3#) 36... Kf8 37. Qd8+ Kg7 38. Qg5+ (38. Qxd6 Qg4+ 39. Kh1 Qf3+ 40. Kg1 Qf2+ 41. Kh1 Qxe1+ 42. Kg2 Qf1+ 43. Kg3 Rf3#) 38... Kf8 $11) 35. Qd8+ {[%emt 0:00:44]} Kf7 {[%emt 0:00:31]} 36. Qc7+ {[%emt 0:00:05]} Kg6 {[%emt 0:00:40] ( -> ...Qg4+)} (36... Kg8 $5 37. Qd8+ $8 Kf7 38. Qc7+ Kg8 39. Qd8+ Kf7 $11) 37. Qxd6+ {[%emt 0:00:27]} Kh7 $2 {[%emt 0:00:45][%mdl 8192]} (37... Rf6 $2 38. Qxe5 Qxh4 39. Re2 $18) (37... Kf7 $11 {and Black stays safe.} 38. Qc7+ (38. Qxe5 $2 Rg4+ 39. Qg3 Rxg3+ 40. hxg3 Qxg3+ 41. Kf1 Qf3+ 42. Kg1 Qg4+ 43. Kf1 Qxc4+ 44. Kg1 Qxa2 $19) 38... Kg6 39. Qd6+ (39. Qxe5 $2 Rg4+ 40. Qg3 Rxg3+ 41. hxg3 Qxg3+ 42. Kf1 Qf3+ 43. Kg1 Qg4+ 44. Kf1 Qf3+ 45. Kg1 Qg4+ 46. Kf1 Qxc4+ 47. Kg1 Qxa2 $19) 39... Kf7 40. Qc7+ (40. Qxe5 $2 Rg4+ 41. Qg3 Rxg3+ 42. hxg3 Qxg3+ 43. Kf1 Qf3+ 44. Kg1 Qg4+ 45. Kf1 Qxc4+ 46. Kg1 Qxa2 $19) 40... Kg6 41. Qd6+ (41. Qxe5 $2 Rg4+ 42. Qg3 Rxg3+ 43. hxg3 Qxg3+ 44. Kf1 Qf3+ 45. Kg1 Qg4+ 46. Kf1 Qxc4+ 47. Kg1 Qxa2 $19)) 38. Qe7+ $18 {[%emt 0:00:20]} (38. Qxe5 $2 Rg4+ 39. Qg3 (39. Kf2 $2 Rg2+ 40. Kf1 Qf3#) 39... Rxg3+ 40. hxg3 Qxg3+ 41. Kf1 Qf3+ 42. Kg1 Qg4+ 43. Kf1 Qxc4+ 44. Kg1 Qd4+ 45. Kg2 Qxd5+ 46. Kg1 Qd4+ 47. Kf1 Qxh4 $19) 38... Kh8 $2 {[%emt 0:00:30] What a bad dream for Black.  Weighted Error Value: White=0.69/Black=0.61} (38... Kg6 $18 39. Qe8+ (39. Qxe5 Rg4+ 40. Qg3 Rxg3+ 41. hxg3 Qxg3+ 42. Kf1 Qf3+ 43. Kg1 Qg4+ 44. Kf1 Qxc4+ 45. Kg2 Qxd5+ 46. Kg3 Qd3+ 47. Kg2 Qd2+ 48. Kf1 Qf4+ 49. Ke2 Qe4+ 50. Kd2 Qb4+ 51. Ke2 Qxb2+ 52. Ke3 Qe5+ 53. Kf2 Qf4+ 54. Ke2 Qc4+ 55. Kf3 Qg4+ 56. Ke3 Qe6+ 57. Kf2 Qxa2+ 58. Kg1 Qc4 $19) (39. Qg5+ Kf7 $16) 39... Kh7 40. Qxh5+ Kg8 41. Qe8+ (41. Qxe5 $2 Rg4+ 42. Qg3 Rxg3+ 43. hxg3 Qxg3+ 44. Kf1 Qf3+ 45. Kg1 Qg4+ 46. Kf1 Qxc4+ 47. Re2 Qxa2 $19) 41... Kh7 42. Qe7+ (42. Qxe5 $2 Rg4+ 43. Qg3 Rxg3+ 44. hxg3 Qxg3+ 45. Kf1 Qf3+ 46. Kg1 Qg4+ 47. Kf1 Qxc4+ 48. Re2 Kg6 $19) 42... Kg8 43. Qe6+ (43. Qxe5 $2 Qg4+ 44. Kh1 Qf3+ 45. Kg1 Rg4+ 46. Qg3 Rxg3+ 47. hxg3 Qxg3+ 48. Kf1 Qf3+ 49. Kg1 Qg4+ 50. Kf1 Qf3+ 51. Kg1 Qg4+ 52. Kf1 Qxc4+ 53. Re2 Qxa2 $19) (43. Qxa7 $2 Rg4+ 44. Kf2 Rg2+ 45. Kf1 Qf3#) (43. Qg5+ Kf7 $16) 43... Qxe6 44. dxe6 Rxh4) 1-0

[Event "4th ESNA Championship 2022"]
[Site "Vaduz"]
[Date "2022.09.26"]
[Round "2.5"]
[White "Berend, Fred"]
[Black "Henderson de La Fuente, Lance"]
[Result "1/2-1/2"]
[ECO "C54"]
[WhiteElo "2300"]
[BlackElo "2504"]
[Annotator "RC"]
[PlyCount "55"]
[EventDate "2022.09.25"]
[EventCountry "LIE"]
[SourceTitle "playchess.com"]
[Source "ChessBase"]
[SourceQuality "1"]
[TimeControl "5400+30"]

1. e4 {[%emt 0:03:59]} e5 {[%emt 0:01:55]} 2. Nf3 {[%emt 0:00:13]} Nc6 {[%emt 0:00:17]} 3. Bc4 {[%emt 0:00:05]} Bc5 {[%emt 0:00:25]} 4. c3 {[%emt 0:00:20]} Nf6 {[%emt 0:00:13]} 5. d4 {[%emt 0:00:09]} exd4 {[%emt 0:00:14]} 6. e5 {[%emt 0:00:06]} d5 {[%emt 0:00:25]} 7. Bb5 {[%emt 0:00:09]} Ne4 {[%emt 0:00:48]} 8. cxd4 {[%emt 0:00:04]} Bb6 {[%emt 0:01:58]} 9. Be3 {[%emt 0:00:30]} O-O {[%emt 0:01:16]} 10. Nc3 {[%emt 0:00:30]} Ba5 {[%emt 0:05:12]} 11. Rc1 {[%emt 0:00:54]} f5 {[%emt 0:07:48]} 12. exf6 {[%emt 0:02:11]} Qxf6 {[%emt 0:04:48]} 13. Qb3 {[%emt 0:07:14]} Ne7 {[%emt 0:07:42]} 14. Bd3 {[%emt 0:01:22]} Bf5 {[%emt 0:06:53]} 15. Ne5 {[%emt 0:06:08]} Bxc3+ {[%emt 0:14:04]} 16. bxc3 {[%emt 0:00:15]} Nc5 {[%emt 0:00:32]} 17. dxc5 {[%emt 0:02:44]} Qxe5 {[%emt 0:00:10]} 18. Be2 {[%emt 0:00:21]} Be4 {[%emt 0:01:04]} 19. O-O {[%emt 0:14:49]} Bxg2 {[%emt 0:05:04]} 20. Kxg2 {[%emt 0:02:17]} Qe4+ {[%emt 0:00:59]} 21. Kg1 {[%emt 0:00:36]} Qg6+ {[%emt 0:05:22]} 22. Kh1 {[%emt 0:00:06]} Qe4+ {[%emt 0:00:17]} 23. Kg1 {[%emt 0:00:01]} Rf6 {[%emt 0:00:36]} 24. Bh5 {[%emt 0:00:16]} Rg6+ {[%emt 0:12:15]} 25. Bxg6 {[%emt 0:00:30]} Qg4+ {[%emt 0:00:10]} 26. Kh1 {[%emt 0:00:06]} Qf3+ {[%emt 0:00:04]} 27. Kg1 {[%emt 0:00:01]} Qg4+ {[%emt 0:00:08]} 28. Kh1 {[%emt 0:00:10]} 1/2-1/2

[Event "4th ESNA Championship 2022"]
[Site "Vaduz"]
[Date "2022.09.26"]
[Round "3.1"]
[White "Henderson de La Fuente, Lance"]
[Black "Mizzi, Jack"]
[Result "1-0"]
[ECO "E18"]
[WhiteElo "2504"]
[BlackElo "1863"]
[Annotator "TA"]
[PlyCount "91"]
[EventDate "2022.09.25"]
[EventType "tourn"]
[EventCountry "LIE"]
[SourceTitle "playchess.com"]
[Source "ChessBase"]
[SourceQuality "1"]
[TimeControl "40/5400+30:1800+30"]

{[%evp 19,91,29,30,23,33,39,21,10,29,11,15,0,6,19,19,0,0,0,39,32,39,35,64,55,61,58,103,38,47,0,72,25,29,33,42,52,150,32,216,166,327,326,332,335,341,337,341,341,449,412,421,373,383,369,382,366,1003,958,1642,1575,1696,1702,1597,1569,1835,1104,1219,592,596,577,798,783,1181,1142]} 1. d4 {[%emt 0:00:30]} Nf6 {[%emt 0:00:26]} 2. Nf3 {[%emt 0:00:23]} d5 {[%emt 0:00:54]} 3. c4 {[%emt 0:00:14]} e6 {[%emt 0:00:23]} 4. g3 {[%emt 0:00:19]} Nbd7 {[%emt 0:01:46]} 5. Bg2 {[%emt 0:01:58]} Be7 {[%emt 0:02:19]} 6. O-O {[%emt 0:00:26]} O-O {[%emt 0:00:30]} 7. Qc2 {[%emt 0:01:55]} c5 {[%emt 0:02:17]} 8. cxd5 {[%emt 0:01:44]} exd5 {[%emt 0:02:24]} 9. Nc3 {[%emt 0:00:56]} b6 {[%emt 0:02:14]} 10. Bf4 {[%emt 0:02:48]} Bb7 {[%emt 0:02:54]} 11. Rad1 {[%emt 0:01:33] E18: Queen's Indian: Old Main Line (4 g3 Bb7 5 Bg2 Be7 6 0-0 0-0 7 Nc3).} Rc8 {[%emt 0:01:30]} 12. dxc5 {[%emt 0:01:47]} Nxc5 {[%emt 0:06:20]} 13. Qb1 {[%emt 0:10:37] [#] The position is equal.} Qe8 $146 {[%emt 0:11:12]} ({Predecessor:} 13... Ne6 14. Nb5 Qd7 15. Nbd4 Nxf4 16. gxf4 Nh5 17. Ne5 Qd6 18. e3 Bf6 19. Nef3 g6 {½-½ (35) Sun,Y-Zheng,C (1699) Changsha 2019}) 14. Nd4 {[%emt 0:05:57]} Ne6 {[%emt 0:08:05]} 15. Be3 {[%emt 0:13:03]} Bc5 {[%emt 0:09:12]} 16. Nf5 {[%emt 0:04:48][%cal Rc3d5]} Rd8 $1 {[%emt 0:01:40]} 17. Bxc5 {[%emt 0:04:32]} bxc5 {[%emt 0:04:01]} 18. b4 {[%emt 0:01:59][%cal Bb2b4,Bb4b5][%mdl 32]} c4 {[%emt 0:04:01]} (18... d4 $5 {[%cal Rb7g2]} 19. Bxb7 dxc3 $11) 19. b5 {[%emt 0:04:41]} g6 {[%emt 0:03:42]} 20. Nd4 {[%emt 0:03:11]} Nc5 {[%emt 0:00:24]} 21. a4 {[%emt 0:00:47]} Qe5 {[%emt 0:01:36]} 22. Qb4 {[%emt 0:01:02]} Rc8 {[%emt 0:02:54]} 23. Nf3 {[%emt 0:04:57]} (23. Nc6 $1 $16 {[%cal Rc6e5]} Bxc6 24. Qxc5) 23... Qc7 {[%emt 0:02:57]} 24. Nd4 {[%emt 0:01:03]} (24. a5 $14) 24... a5 {[%emt 0:02:32]} (24... Qe5 $1 $11 {keeps the balance.}) 25. Qa3 {[%emt 0:03:53]} (25. bxa6 $16 Nxa6 26. Qa3) 25... Qb6 {[%emt 0:00:32]} 26. Qc1 {[%emt 0:04:32]} Ne6 {[%emt 0:04:00] Against Qf4} 27. Qe3 $36 {[%emt 0:02:50][%mdl 2048] White fights for an advantage.} Rfe8 {[%emt 0:03:07] [#]} (27... Rcd8 $14) 28. Nc6 {[%emt 0:03:36]} (28. Nxe6 $1 $16 Rxe6 29. Qxb6 (29. Nxd5 Nxd5 30. Qxb6 Nxb6 $11) 29... Rxb6 30. Bxd5 (30. Nxd5 Nxd5 31. Bxd5 Bxd5 $16)) 28... Nc5 $2 {[%emt 0:03:00] A mistake that costs the game.} ({Black should try} 28... d4 $1 $14 29. Qf3 (29. Nxd4 Ng4 $15) 29... Nd7) 29. Qd4 {[%emt 0:00:48]} (29. Ne7+ $2 {[#]} Rxe7 $1 {[%mdl 512]} 30. Qxe7 Re8 31. Qxe8+ Nxe8 $19) 29... Bxc6 $2 {[%emt 0:01:59]} (29... Ncd7 {keeps fighting.}) 30. Qxf6 $18 {[%emt 0:00:28][%mdl 64] Pin} Nd7 {[%emt 0:01:03]} 31. Qf4 {[%emt 0:02:39]} (31. Nxd5 Bxd5 32. Qxb6 Nxb6 $17) 31... Ba8 {[%emt 0:00:41]} 32. Bxd5 {[%emt 0:00:07]} (32. Nxd5 Bxd5 33. Bxd5 Ne5 $18) 32... Bxd5 {[%emt 0:00:36]} 33. Rxd5 {[%emt 0:00:28]} ({But not} 33. Nxd5 Qc5 34. Nc3 Nb6 $18) 33... Qb7 {[%emt 0:00:40]} 34. Rfd1 {[%emt 0:00:17]} Nc5 {[%emt 0:01:17]} 35. h4 {[%emt 0:01:42]} Ne6 {[%emt 0:00:43]} 36. Qf6 {[%emt 0:00:29] Rd7 is the strong threat.} Qe7 {[%emt 0:01:56]} 37. Qe5 {[%emt 0:01:59]} Qb4 $2 {[%emt 0:02:00]} (37... Nc5) 38. Ne4 {[%emt 0:01:10] And now Nf6+ would win. White is clearly winning.} Re7 {[%emt 0:00:59]} 39. Nf6+ {[%emt 0:00:38]} Kf8 {[%emt 0:00:06]} 40. Nxh7+ {[%emt 0:00:19]} Kg8 {[%emt 0:00:06]} 41. Nf6+ {[%emt 0:30:05]} Kf8 {[%emt 0:30:08]} 42. Ne4 {[%emt 0:04:11][%cal Re5h8]} Kg8 {[%emt 0:00:46] Inhibits Qh8+.} 43. Nc3 {[%emt 0:01:23]} (43. Rd6 $142 Rf8 44. Nf6+ Kg7 45. Nd5+ f6 46. Rxe6 (46. Nxe7 fxe5 47. Rxe6 c3 $17) 46... fxe5 47. Rxe7+ (47. Nxb4 Rxe6 48. Nc6 Rxc6 $16) 47... Qxe7 48. Nxe7) 43... Nf8 {[%emt 0:01:13]} 44. Qd4 {[%emt 0:00:14]} Rce8 {[%emt 0:01:14]} 45. h5 {[%emt 0:00:37]} Ne6 {[%emt 0:00:49]} 46. Qf6 {[%emt 0:00:11] Weighted Error Value: White=0.36/Black=0.38} 1-0